bitfinex/quotes_SOLUSD_20241101
["timestamp","ask_amount","ask_price","bid_price","bid_amount"]
[1730492059481,22.1529,166.75,166.71,5.9984]
[1730492059775,31.01753226,166.75,166.7,14.997]
[1730492060461,31.01753226,166.75,166.7,20.9956]
[1730492060868,31.01753226,166.75,166.7,29.86023226]
[1730492061074,16.1558,166.75,166.71,8.86463226]
[1730492061376,16.1558,166.75,166.72,8.86463226]
[1730492061967,16.1558,166.75,166.71,8.86463226]
[1730492063175,16.1558,166.75,166.72,5.998]
[1730492065965,31.01743226,166.75,166.7,29.86003226]
[1730492066171,31.01743226,166.75,166.7,20.9954]
[1730492066369,8.86463226,166.74,166.7,20.9954]
[1730492066883,31.01743226,166.75,166.7,20.9954]
[1730492067075,31.01743226,166.75,166.7,23.86163226]
[1730492067709,22.1528,166.75,166.7,23.86163226]
[1730492068559,22.1528,166.75,166.7,29.86043226]
[1730492070260,16.1558,166.75,166.7,29.86043226]
[1730492070466,5.9965,166.77,166.72,8.86463226]
[1730492070985,23.776884,166.77,166.72,8.86463226]
[1730492072384,32.64151626,166.77,166.71,8.86463226]
[1730492072568,38.63781626,166.77,166.71,8.86463226]
[1730492073569,38.63781626,166.77,166.72,5.998]
[1730492075564,8.86463226,166.76,166.7,23.86163226]
[1730492076189,8.86463226,166.74,166.7,14.997]
[1730492076666,8.86463226,166.75,166.7,14.997]
[1730492078088,14.86153226,166.76,166.7,23.86163226]
[1730492078282,23.776884,166.75,166.7,23.86163226]
[1730492078588,23.776884,166.75,166.71,8.86463226]
[1730492086289,23.776884,166.75,166.71,14.86273226]
[1730492087796,29.773684,166.76,166.71,29.85883226]
[1730492087990,29.773684,166.76,166.71,20.9942]
[1730492088387,23.776884,166.76,166.71,29.85883226]
[1730492092909,38.63811626,166.76,166.71,14.9961]
[1730492093390,29.773484,166.76,166.71,23.86073226]
[1730492094505,29.773484,166.76,166.71,29.85913226]
[1730492095011,23.776884,166.77,166.72,8.86463226]
[1730492096290,23.776884,166.77,166.73,5.9977]
[1730492097995,23.776884,166.77,166.72,8.86463226]
[1730492097996,8.86463226,166.76,166.72,5.998]
[1730492098201,38.63771626,166.77,166.72,5.998]
[1730492099107,38.63771626,166.77,166.72,20.9932]
[1730492100097,29.773084,166.77,166.72,20.9932]
[1730492101520,8.86463226,166.76,166.7,8.86463226]
[1730492101687,8.86463226,166.75,166.69,29.86163226]
[1730492102404,8.86463226,166.76,166.7,8.86463226]
[1730492102707,38.63771626,166.77,166.71,20.9945]
[1730492103716,38.63771626,166.77,166.71,23.86073226]
[1730492105893,38.63771626,166.77,166.71,29.85913226]
[1730492108318,38.63771626,166.77,166.71,14.9961]
[1730492108609,8.86463226,166.76,166.71,14.9961]
[1730492108921,32.64151626,166.75,166.71,14.9961]
[1730492109207,8.86463226,166.74,166.69,5.9991]
[1730492109413,8.86463226,166.73,166.69,5.9991]
[1730492109594,8.86463226,166.73,166.68,21.26561178]
[1730492109911,8.86463226,166.71,166.68,14.9987]
[1730492110124,15.2608,166.74,166.7,8.86463226]
[1730492110414,29.773584,166.76,166.72,14.86263226]
[1730492110907,29.773584,166.76,166.72,5.998]
[1730492111416,29.773584,166.76,166.73,8.86463226]
[1730492111890,22.3124,166.78,166.67,29.9992]
[1730492112087,22.3124,166.78,166.74,8.86463226]
[1730492113203,22.3124,166.78,166.73,8.86463226]
[1730492113711,22.3124,166.78,166.73,14.86213226]
[1730492114314,23.776884,166.7,166.65,6.26397834]
[1730492114520,23.776884,166.7,166.51,23.1413]
[1730492114521,23.776884,166.68,166.52,21.0184]
[1730492114703,40.120584,166.65,166.52,21.0184]
[1730492114893,23.776884,166.64,166.55,6.26767288]
[1730492115095,23.776884,166.64,166.52,21.0184]
[1730492115301,23.776884,166.64,166.55,6.26671037]
[1730492115695,23.776884,166.62,166.52,21.0184]
[1730492115913,23.776884,166.62,166.52,27.28551126]
[1730492116104,8.86463226,166.59,166.53,8.86463226]
[1730492116314,23.776884,166.58,166.54,8.86463226]
[1730492116532,23.776884,166.58,166.53,8.86463226]
[1730492116820,32.64151626,166.58,166.52,23.87783226]
[1730492117009,23.776884,166.58,166.54,8.86463226]
[1730492117820,23.776884,166.58,166.53,8.86463226]
[1730492118030,23.776884,166.58,166.54,8.86463226]
[1730492118523,23.776884,166.58,166.55,8.86463226]
[1730492119018,23.776884,166.58,166.54,8.86463226]
[1730492119229,23.776884,166.58,166.53,14.86933226]
[1730492121022,23.776884,166.58,166.55,8.86463226]
[1730492122111,23.776884,166.6,166.57,8.86463226]
[1730492122322,6.0019,166.62,166.57,8.86463226]
[1730492123710,23.776884,166.61,166.57,8.86463226]
[1730492125119,23.776884,166.59,166.54,23.87513226]
[1730492125835,32.64151626,166.59,166.54,23.87513226]
[1730492126121,32.64151626,166.59,166.54,15.0105]
[1730492128023,23.776884,166.59,166.54,29.87963226]
[1730492128534,29.779584,166.59,166.54,29.87963226]
[1730492131415,29.779584,166.59,166.55,8.86463226]
[1730492132631,23.776884,166.6,166.55,8.86463226]
[1730492133011,23.776884,166.6,166.56,8.86463226]
[1730492134126,32.64151626,166.6,166.55,8.86463226]
[1730492134534,38.64391626,166.6,166.55,8.86463226]
[1730492136231,29.779284,166.6,166.55,14.86843226]
[1730492136737,38.64391626,166.6,166.55,29.87893226]
[1730492137634,32.64151626,166.58,166.52,30.14082181]
[1730492137827,32.64151626,166.56,166.52,27.28128955]
[1730492138027,24.30713226,166.57,166.52,21.27618955]
[1730492138216,23.776884,166.56,166.52,36.14602181]
[1730492139831,32.64151626,166.56,166.52,21.27618955]
[1730492140038,32.64151626,166.56,166.52,15.0127]
[1730492140240,38.64551626,166.56,166.52,15.0127]
[1730492141126,15.4425,166.57,166.53,8.86463226]
[1730492141836,15.4425,166.57,166.54,8.86463226]
[1730492142438,15.4425,166.57,166.54,6.0044]
[1730492147045,23.776884,166.58,166.54,29.88043226]
[1730492147221,23.776884,166.59,166.55,8.86463226]
[1730492147544,32.64151626,166.59,166.54,21.0158]
[1730492149848,38.64431626,166.59,166.54,21.0158]
[1730492152331,29.779684,166.59,166.54,8.86463226]
[1730492153461,29.779684,166.59,166.55,6.0042]
[1730492161336,38.64431626,166.59,166.55,6.0042]
[1730492163745,38.64431626,166.59,166.53,8.86463226]
[1730492164253,38.64431626,166.59,166.54,8.86463226]
[1730492164837,38.64431626,166.59,166.54,14.86893226]
[1730492165541,29.779684,166.59,166.54,14.86893226]
[1730492165751,38.64431626,166.59,166.54,6.0043]
[1730492169854,29.779684,166.59,166.54,8.86463226]
[1730492170760,29.779684,166.59,166.55,8.86463226]
[1730492170960,29.779684,166.59,166.55,14.86873226]
[1730492171758,29.779684,166.59,166.55,6.0041]
[1730492173043,29.779684,166.59,166.55,8.86463226]
[1730492174149,29.779684,166.59,166.55,14.86873226]
[1730492175258,15.0044,166.61,166.58,8.86463226]
[1730492175454,6.0017,166.62,166.58,8.86463226]
[1730492176446,6.0013,166.63,166.58,14.86773226]
[1730492177260,23.776884,166.62,166.58,14.86773226]
[1730492177458,24.12663226,166.65,166.59,8.86463226]
[1730492177655,15.262,166.65,166.61,8.86463226]
[1730492177858,14.9968,166.71,166.58,21.0109]
[1730492177859,5.9991,166.69,166.64,8.86463226]
[1730492178049,8.86463226,166.68,166.63,8.86463226]
[1730492178249,8.86463226,166.66,166.58,42.9086]
[1730492178564,20.997,166.69,166.55,30.0195]
[1730492178763,8.86463226,166.64,166.58,8.86463226]
[1730492178943,8.86463226,166.64,166.56,8.86463226]
[1730492178944,8.86463226,166.62,166.56,8.86463226]
[1730492179149,8.86463226,166.61,166.56,8.86463226]
[1730492179350,32.64151626,166.6,166.55,8.86463226]
[1730492179565,32.64151626,166.6,166.54,8.86463226]
[1730492179767,23.776884,166.58,166.54,8.86463226]
[1730492180299,23.776884,166.61,166.56,8.86463226]
[1730492180570,29.779084,166.61,166.56,14.86833226]
[1730492181071,38.64371626,166.61,166.56,6.0037]
[1730492181362,23.776884,166.59,166.55,29.87893226]
[1730492182562,23.776884,166.6,166.55,29.87893226]
[1730492182964,23.776884,166.6,166.57,8.86463226]
[1730492183159,24.26023226,166.64,166.58,8.86463226]
[1730492183358,24.26023226,166.64,166.59,8.86463226]
[1730492183359,21.3966,166.64,166.59,8.86463226]
[1730492183567,21.3966,166.64,166.6,8.86463226]
[1730492184546,6.0004,166.66,166.61,8.86463226]
[1730492184752,30.47103226,166.68,166.62,8.86463226]
[1730492184958,21.6064,166.68,166.63,8.86463226]
[1730492185945,30.47103226,166.68,166.63,8.86463226]
[1730492186366,23.776884,166.67,166.63,8.86463226]
[1730492187377,23.776884,166.67,166.63,14.86583226]
[1730492189754,23.776884,166.67,166.63,29.86913226]
[1730492190276,23.776884,166.67,166.65,8.86463226]
[1730492190445,23.776884,166.68,166.65,8.86463226]
[1730492191646,29.776484,166.68,166.65,8.86463226]
[1730492191844,23.776884,166.68,166.65,8.86463226]
[1730492193377,23.776884,166.68,166.64,8.86463226]
[1730492194462,32.64151626,166.67,166.61,8.86463226]
[1730492194659,8.86463226,166.67,166.62,8.86463226]
[1730492194861,23.776884,166.66,166.62,8.86463226]
[1730492195264,23.776884,166.66,166.6,8.86463226]
[1730492195265,32.64151626,166.66,166.6,8.86463226]
[1730492195569,38.64261626,166.64,166.59,14.86723226]
[1730492195775,23.776884,166.62,166.57,23.87333226]
[1730492196071,23.776884,166.62,166.57,15.0087]
[1730492196072,32.64151626,166.62,166.57,15.0087]
[1730492196251,23.776884,166.6,166.57,15.0087]
[1730492196456,23.776884,166.6,166.55,21.12599257]
[1730492196665,23.776884,166.6,166.55,14.86873226]
[1730492197568,29.779284,166.6,166.55,14.86873226]
[1730492197782,38.64391626,166.6,166.55,14.86873226]
[1730492199858,29.779284,166.6,166.55,14.86873226]
[1730492200076,29.779284,166.6,166.56,8.86463226]
[1730492202066,29.779284,166.6,166.56,14.86843226]
[1730492204585,29.779284,166.6,166.55,8.86463226]
[1730492206079,29.779284,166.6,166.56,6.0038]
[1730492208589,29.779284,166.6,166.56,8.86463226]
[1730492211377,23.776884,166.61,166.58,8.86463226]
[1730492211993,32.64151626,166.59,166.53,6.25530952]
[1730492212288,32.20861603,166.59,166.47,21.0245]
[1730492212587,23.776884,166.52,166.49,6.25683941]
[1730492212805,23.776884,166.52,166.49,8.86463226]
[1730492212975,23.776884,166.56,166.51,8.86463226]
[1730492213363,23.776884,166.56,166.51,14.86993226]
[1730492215197,29.780784,166.56,166.51,14.86993226]
[1730492216494,29.780784,166.56,166.52,8.86463226]
[1730492216998,29.780784,166.56,166.51,8.86463226]
[1730492217603,29.780784,166.56,166.51,14.87023226]
[1730492217779,23.776884,166.57,166.52,8.86463226]
[1730492218782,38.64501626,166.57,166.52,14.86983226]
[1730492222001,8.86463226,166.56,166.51,23.87873226]
[1730492222301,23.776884,166.57,166.53,8.86463226]
[1730492222497,8.86463226,166.59,166.54,8.86463226]
[1730492222693,6.0027,166.59,166.55,8.86463226]
[1730492222885,8.86463226,166.62,166.57,8.86463226]
[1730492223200,14.86633226,166.62,166.57,8.86463226]
[1730492223399,14.86633226,166.62,166.56,8.86463226]
[1730492224507,38.64381626,166.61,166.56,14.86833226]
[1730492225180,32.64151626,166.59,166.53,8.86463226]
[1730492225381,32.64151626,166.58,166.53,6.0048]
[1730492225613,23.776884,166.57,166.53,6.0048]
[1730492225903,23.776884,166.57,166.53,14.86943226]
[1730492226096,23.776884,166.58,166.53,14.86943226]
[1730492226985,29.780184,166.58,166.53,14.86943226]
[1730492228107,29.780184,166.58,166.54,8.86463226]
[1730492233311,6.0025,166.6,166.55,8.86463226]
[1730492233605,14.86593226,166.63,166.57,8.86463226]
[1730492233811,6.0013,166.63,166.58,8.86463226]
[1730492237896,29.778784,166.62,166.57,14.86803226]
[1730492240300,29.778784,166.62,166.58,8.86463226]
[1730492240610,29.778784,166.62,166.59,8.86463226]
[1730492241315,23.776884,166.62,166.59,8.86463226]
[1730492241511,25.12943226,166.64,166.59,8.86463226]
[1730492241512,29.778284,166.63,166.59,14.86733226]
[1730492242011,23.776884,166.63,166.59,29.87423226]
[1730492242997,29.778184,166.63,166.59,29.87423226]
[1730492243197,16.2648,166.64,166.59,21.0096]
[1730492243395,23.776884,166.64,166.61,8.86463226]
[1730492244612,29.777784,166.64,166.61,8.86463226]
[1730492251898,23.776884,166.64,166.61,8.86463226]
[1730492252117,29.777484,166.65,166.61,8.86463226]
[1730492254318,29.777484,166.65,166.6,8.86463226]
[1730492256102,38.64211626,166.65,166.6,8.86463226]
[1730492261224,29.777484,166.65,166.61,8.86463226]
[1730492261441,29.777484,166.65,166.62,8.86463226]
[1730492262129,29.777484,166.65,166.61,8.86463226]
[1730492262927,38.64211626,166.65,166.59,23.87153226]
[1730492263511,32.64151626,166.63,166.57,14.86803226]
[1730492263729,8.86463226,166.63,166.57,14.86803226]
[1730492263936,8.86463226,166.63,166.58,8.86463226]
[1730492264232,23.776884,166.63,166.58,8.86463226]
[1730492265529,29.778284,166.63,166.58,14.86743226]
[1730492267118,29.778284,166.63,166.59,8.86463226]
[1730492271713,29.778284,166.63,166.59,14.86733226]
[1730492273128,29.778284,166.63,166.6,8.86463226]
[1730492275938,38.64291626,166.63,166.57,29.87673226]
[1730492276339,8.86463226,166.62,166.56,15.12153568]
[1730492276524,23.776884,166.6,166.55,8.86463226]
[1730492277233,23.776884,166.6,166.56,8.86463226]
[1730492277432,29.779284,166.6,166.56,14.86843226]
[1730492277634,29.779284,166.6,166.57,8.86463226]
[1730492280545,6.0016,166.62,166.59,8.86463226]
[1730492283148,23.776884,166.62,166.59,14.86723226]
[1730492283645,23.776884,166.62,166.59,8.86463226]
[1730492285135,23.776884,166.65,166.6,8.86463226]
[1730492285360,29.777484,166.65,166.6,8.86463226]
[1730492285851,29.777484,166.65,166.61,8.86463226]
[1730492286147,23.776884,166.65,166.62,8.86463226]
[1730492287141,29.777484,166.65,166.62,8.86463226]
[1730492292451,29.777484,166.65,166.63,8.86463226]
[1730492292744,9.2402,166.66,166.63,8.86463226]
[1730492292950,3.24,166.66,166.63,8.86463226]
[1730492293153,22.133,166.67,166.63,8.86463226]
[1730492293362,22.133,166.67,166.64,8.86463226]
[1730492294328,6.0001,166.67,166.64,8.86463226]
[1730492294722,23.776884,166.69,166.65,8.86463226]
[1730492294950,5.9994,166.69,166.66,8.86463226]
[1730492295144,5.9985,166.71,166.67,8.86463226]
[1730492295632,5.9985,166.71,166.66,8.86463226]
[1730492296731,23.776884,166.7,166.66,8.86463226]
[1730492297141,23.776884,166.71,166.66,8.86463226]
[1730492297430,29.775284,166.71,166.66,8.86463226]
[1730492300369,29.775284,166.71,166.67,8.86463226]
[1730492306158,29.775284,166.71,166.66,14.86473226]
[1730492306333,29.775284,166.71,166.66,8.86463226]
[1730492306535,38.63991626,166.71,166.65,8.86463226]
[1730492307451,38.63991626,166.71,166.65,14.86493226]
[1730492308241,38.63991626,166.71,166.66,8.86463226]
[1730492308962,29.775284,166.71,166.66,8.86463226]
[1730492309258,29.775284,166.71,166.67,8.86463226]
[1730492314064,29.775284,166.71,166.68,8.86463226]
[1730492316780,29.775284,166.71,166.67,8.86463226]
[1730492317359,29.775284,166.71,166.66,8.86463226]
[1730492318761,29.775284,166.71,166.66,14.86463226]
[1730492321169,29.775284,166.71,166.67,8.86463226]
[1730492321353,22.1503,166.72,166.68,8.86463226]
[1730492321556,23.776884,166.74,166.71,8.86463226]
[1730492321766,23.776884,166.74,166.7,8.86463226]
[1730492322074,23.776884,166.74,166.69,8.86463226]
[1730492322669,5.9977,166.73,166.69,8.86463226]
[1730492323676,5.9977,166.73,166.7,8.86463226]
[1730492325387,23.776884,166.74,166.64,35.45852904]
[1730492325388,5.9974,166.74,166.71,8.86463226]
[1730492325544,9.2367,166.76,166.73,8.86463226]
[1730492325863,9.2367,166.76,166.69,20.9967]
[1730492325864,3.24,166.76,166.74,8.86463226]
[1730492326050,39.32743226,166.8,166.75,8.86463226]
[1730492326051,5.9955,166.79,166.75,8.86463226]
[1730492326456,5.9955,166.79,166.74,8.86463226]
[1730492326653,14.86013226,166.79,166.73,8.86463226]
[1730492327265,23.776884,166.78,166.73,8.86463226]
[1730492327971,5.9962,166.77,166.73,8.86463226]
[1730492329374,5.9962,166.77,166.74,8.86463226]
[1730492331675,5.9962,166.77,166.73,8.86463226]
[1730492334472,32.64151626,166.76,166.7,8.86463226]
[1730492335367,32.64151626,166.76,166.71,8.86463226]
[1730492335564,5.997,166.75,166.71,8.86463226]
[1730492336976,23.776884,166.74,166.69,8.86463226]
[1730492337651,38.83191626,166.74,166.68,23.86283226]
[1730492337858,23.776884,166.72,166.67,8.86463226]
[1730492338864,8.86463226,166.71,166.66,8.86463226]
[1730492339066,23.776884,166.71,166.67,8.86463226]
[1730492340460,23.776884,166.69,166.64,15.11921032]
[1730492340681,32.64151626,166.69,166.63,8.86463226]
[1730492341659,5.9995,166.68,166.63,8.86463226]
[1730492341862,23.776884,166.67,166.63,8.86463226]
[1730492343195,29.776784,166.67,166.64,8.86463226]
[1730492348987,38.64141626,166.67,166.61,8.86463226]
[1730492349192,23.776884,166.65,166.61,8.86463226]
[1730492349369,23.776884,166.65,166.62,8.86463226]
[1730492349568,23.776884,166.66,166.63,8.86463226]
[1730492350284,23.776884,166.66,166.62,8.86463226]
[1730492351371,29.776684,166.67,166.62,8.86463226]
[1730492352579,38.64131626,166.67,166.61,8.86463226]
[1730492353487,29.776684,166.67,166.62,8.86463226]
[1730492362900,38.64131626,166.67,166.61,8.86463226]
[1730492364986,16.4462,166.66,166.61,8.86463226]
[1730492365190,32.64151626,166.62,166.58,6.24834558]
[1730492365392,32.64151626,166.62,166.57,8.86463226]
[1730492366005,23.776884,166.62,166.57,8.86463226]
[1730492366499,8.86463226,166.63,166.6,8.86463226]
[1730492366500,23.776884,166.63,166.6,8.86463226]
[1730492366686,29.777784,166.64,166.6,8.86463226]
[1730492367301,29.777784,166.64,166.62,8.86463226]
[1730492373397,29.777784,166.64,166.61,8.86463226]
[1730492376110,29.777784,166.64,166.6,8.86463226]
[1730492376488,38.64241626,166.64,166.59,8.86463226]
[1730492377289,29.777784,166.64,166.59,8.86463226]
[1730492377992,29.777784,166.64,166.61,8.86463226]
[1730492379310,29.777784,166.64,166.6,8.86463226]
[1730492383194,29.777784,166.64,166.61,8.86463226]
[1730492383399,29.777784,166.64,166.6,8.86463226]
[1730492398106,29.777784,166.64,166.59,8.86463226]
[1730492403115,6.3799,166.69,166.63,8.86463226]
[1730492403323,5.9991,166.69,166.64,8.86463226]
[1730492403498,8.86463226,166.67,166.61,8.86463226]
[1730492403698,15.159,166.67,166.57,6.24857471]
[1730492403893,15.159,166.67,166.56,15.0089]
[1730492403894,22.68617363,166.67,166.56,21.0126]
[1730492405014,44.777684,166.66,166.56,21.0126]
[1730492405202,23.776884,166.62,166.57,8.86463226]
[1730492406003,6.002,166.61,166.57,8.86463226]
[1730492407301,29.778584,166.62,166.6,8.86463226]
[1730492407503,23.776884,166.64,166.61,8.86463226]
[1730492408620,29.777484,166.65,166.61,8.86463226]
[1730492408825,29.777484,166.65,166.6,8.86463226]
[1730492409632,29.777484,166.65,166.61,8.86463226]
[1730492410121,29.777484,166.65,166.62,8.86463226]
[1730492410903,29.777484,166.65,166.61,8.86463226]
[1730492412809,29.777484,166.65,166.62,8.86463226]
[1730492413532,29.777484,166.65,166.61,8.86463226]
[1730492413704,38.64211626,166.65,166.6,8.86463226]
[1730492414424,8.86463226,166.64,166.59,8.86463226]
[1730492414608,38.64211626,166.65,166.59,8.86463226]
[1730492415533,38.64211626,166.65,166.6,8.86463226]
[1730492416329,29.777484,166.65,166.61,8.86463226]
[1730492417405,29.777484,166.65,166.6,8.86463226]
[1730492420712,38.64211626,166.65,166.59,8.86463226]
[1730492421818,8.86463226,166.62,166.57,8.86463226]
[1730492422328,23.776884,166.61,166.57,8.86463226]
[1730492422725,6.0024,166.6,166.57,8.86463226]
[1730492425408,6.0024,166.6,166.56,8.86463226]
[1730492425812,23.776884,166.59,166.55,8.86463226]
[1730492426016,32.64151626,166.59,166.54,8.86463226]
[1730492427122,32.64151626,166.59,166.53,8.86463226]
[1730492427523,23.776884,166.57,166.53,8.86463226]
[1730492428926,29.779984,166.58,166.53,8.86463226]
[1730492429529,29.779984,166.58,166.54,8.86463226]
[1730492433523,38.64461626,166.58,166.52,23.87723226]
[1730492433935,38.64461626,166.58,166.53,8.86463226]
[1730492436522,29.779984,166.58,166.53,8.86463226]
[1730492438039,29.779984,166.58,166.54,8.86463226]
[1730492440323,38.64461626,166.58,166.53,8.86463226]
[1730492440641,23.776884,166.54,166.5,8.86463226]
[1730492443735,29.781784,166.54,166.5,8.86463226]
[1730492445029,29.781784,166.54,166.49,8.86463226]
[1730492446260,29.781784,166.54,166.49,14.87083226]
[1730492448245,8.86463226,166.53,166.48,23.88103226]
[1730492448748,23.776884,166.52,166.48,23.88103226]
[1730492449927,23.776884,166.53,166.48,23.88103226]
[1730492450251,23.776884,166.53,166.49,8.86463226]
[1730492451138,29.782084,166.53,166.49,8.86463226]
[1730492451532,29.782084,166.53,166.5,8.86463226]
[1730492451930,6.0038,166.56,166.52,8.86463226]
[1730492452445,23.776884,166.55,166.52,8.86463226]
[1730492453346,6.0027,166.59,166.54,8.86463226]
[1730492453538,23.776884,166.58,166.55,8.86463226]
[1730492453736,6.0027,166.59,166.54,8.86463226]
[1730492455150,23.776884,166.58,166.54,8.86463226]
[1730492456960,23.776884,166.58,166.53,8.86463226]
[1730492457143,23.776884,166.56,166.53,8.86463226]
[1730492458162,29.780684,166.56,166.53,8.86463226]
[1730492461764,29.780684,166.56,166.52,14.86983226]
[1730492462156,29.780684,166.56,166.52,8.86463226]
[1730492462654,29.780684,166.56,166.52,14.86983226]
[1730492464754,29.780684,166.56,166.53,8.86463226]
[1730492464958,6.0027,166.59,166.55,8.86463226]
[1730492465267,6.0027,166.59,166.56,8.86463226]
[1730492466146,15.393,166.61,166.56,8.86463226]
[1730492466346,29.779284,166.6,166.56,8.86463226]
[1730492470369,8.86463226,166.63,166.58,8.86463226]
[1730492470678,8.86463226,166.63,166.56,6.0037]
[1730492470679,6.0013,166.63,166.59,8.86463226]
[1730492471549,6.0013,166.63,166.58,8.86463226]
[1730492471749,6.002,166.61,166.58,8.86463226]
[1730492471950,23.776884,166.6,166.58,8.86463226]
[1730492472965,23.776884,166.6,166.59,8.86463226]
[1730492473272,23.776884,166.62,166.59,8.86463226]
[1730492473566,23.776884,166.62,166.6,8.86463226]
[1730492474666,29.778584,166.62,166.6,8.86463226]
[1730492475581,15.6801,166.65,166.61,8.86463226]
[1730492475872,6.0007,166.65,166.63,8.86463226]
[1730492477175,23.776884,166.64,166.62,8.86463226]
[1730492478467,29.777884,166.64,166.62,8.86463226]
[1730492481549,29.777884,166.64,166.61,8.86463226]
[1730492501886,5.9998,166.67,166.63,8.86463226]
[1730492502098,5.9998,166.67,166.65,8.86463226]
[1730492502386,5.9998,166.67,166.58,15.0078]
[1730492502387,5.9998,166.67,166.66,8.86463226]
[1730492502766,5.9998,166.67,166.65,8.86463226]
[1730492504695,23.776884,166.67,166.64,8.86463226]
[1730492504981,23.776884,166.67,166.62,8.86463226]
[1730492505189,32.64151626,166.67,166.61,23.86923226]
[1730492506391,6.0002,166.66,166.61,23.86923226]
[1730492506590,23.776884,166.65,166.62,8.86463226]
[1730492507987,29.777784,166.65,166.62,8.86463226]
[1730492510586,29.777784,166.65,166.55,12.42471576]
[1730492510788,29.777784,166.65,166.6,8.86463226]
[1730492511674,29.777784,166.65,166.62,8.86463226]
[1730492512280,29.777784,166.65,166.63,8.86463226]
[1730492515780,29.777784,166.65,166.61,8.86463226]
[1730492516181,29.777784,166.65,166.6,8.86463226]
[1730492517501,38.64241626,166.65,166.6,8.86463226]
[1730492519007,29.777784,166.65,166.6,8.86463226]
[1730492520005,29.777784,166.65,166.61,8.86463226]
[1730492520201,29.777784,166.65,166.62,8.86463226]
[1730492523706,29.777784,166.65,166.63,8.86463226]
[1730492524090,29.777784,166.65,166.62,8.86463226]
[1730492525188,38.64241626,166.65,166.59,8.86463226]
[1730492525599,32.64151626,166.63,166.57,8.86463226]
[1730492526287,8.86463226,166.62,166.56,29.87773226]
[1730492526493,23.776884,166.61,166.56,23.87393226]
[1730492527093,6.0024,166.6,166.57,8.86463226]
[1730492527302,29.778984,166.61,166.59,8.86463226]
[1730492529109,6.0015,166.63,166.6,8.86463226]
[1730492529291,6.0015,166.63,166.62,8.86463226]
[1730492529787,6.0015,166.63,166.61,8.86463226]
[1730492530208,6.0015,166.63,166.6,8.86463226]
[1730492530515,6.0015,166.63,166.59,8.86463226]
[1730492532415,8.86463226,166.61,166.56,8.86463226]
[1730492532596,23.776884,166.6,166.56,8.86463226]
[1730492532803,32.64151626,166.6,166.55,8.86463226]
[1730492533111,23.776884,166.6,166.55,8.86463226]
[1730492533793,6.0027,166.59,166.55,8.86463226]
[1730492534207,6.0027,166.59,166.56,8.86463226]
[1730492534514,6.0027,166.59,166.57,8.86463226]
[1730492536914,6.0027,166.59,166.56,8.86463226]
[1730492538018,6.0027,166.59,166.55,8.86463226]
[1730492539721,6.0027,166.59,166.56,8.86463226]
[1730492545131,6.0016,166.62,166.58,8.86463226]
[1730492546219,6.0016,166.62,166.57,8.86463226]
[1730492547519,6.0016,166.62,166.58,8.86463226]
[1730492550019,29.778184,166.63,166.58,8.86463226]
[1730492550417,29.778184,166.63,166.59,8.86463226]
[1730492550611,6.0006,166.65,166.61,8.86463226]
[1730492551718,23.776884,166.64,166.61,8.86463226]
[1730492551918,6.0013,166.63,166.61,8.86463226]
[1730492554207,6.0013,166.63,166.59,8.86463226]
[1730492556728,6.0013,166.63,166.6,8.86463226]
[1730492561537,6.0013,166.63,166.59,8.86463226]
[1730492563534,6.0013,166.63,166.57,8.86463226]
[1730492563535,23.776884,166.62,166.57,8.86463226]
[1730492564720,6.002,166.61,166.58,8.86463226]
[1730492565914,6.002,166.61,166.57,8.86463226]
[1730492567241,6.002,166.61,166.58,8.86463226]
[1730492570341,6.002,166.61,166.6,8.86463226]
[1730492574147,6.002,166.61,166.59,8.86463226]
[1730492576645,38.22447363,166.69,166.6,8.86463226]
[1730492576950,38.22447363,166.69,166.64,8.86463226]
[1730492576951,30.6973,166.69,166.64,8.86463226]
[1730492577327,39.56193226,166.69,166.63,8.86463226]
[1730492577627,5.9995,166.68,166.63,8.86463226]
[1730492578026,5.9995,166.68,166.62,8.86463226]
[1730492578027,23.776884,166.67,166.62,8.86463226]
[1730492578827,32.64151626,166.67,166.62,8.86463226]
[1730492579554,23.776884,166.65,166.61,8.86463226]
[1730492579848,29.777784,166.65,166.61,8.86463226]
[1730492580651,29.777784,166.65,166.62,8.86463226]
[1730492581552,29.777784,166.65,166.61,8.86463226]
[1730492584033,29.777784,166.65,166.62,8.86463226]
[1730492584241,29.777784,166.65,166.63,8.86463226]
[1730492584440,29.777784,166.65,166.62,8.86463226]